fUSD/lending_fUSD_20260621
["ID","MTS","AMOUNT","RATE_DAILY","PERIOD"]
[425964756,1782048642000,-150.0,0.0002058,2]
[425964755,1782048642000,-157.2,0.00020381,2]
[425964750,1782048642000,-167.67306325,0.0002,2]
[425964754,1782048642000,-1934.38338736,0.00020336,2]
[425964746,1782048642000,-440.0,0.0002,2]
[425964731,1782048642000,-150.0,0.000199,7]
[425964749,1782048642000,-2000.0,0.0002,7]
[425964742,1782048642000,-151.0,0.0002,2]
[425964739,1782048642000,-163.92815353,0.0002,14]
[425964735,1782048642000,-12140.09,0.00019968,2]
[425964737,1782048642000,-153.7333,0.00019999,2]
[425964733,1782048642000,-460.83,0.00019968,2]
[425964736,1782048642000,-500.0,0.00019998,2]
[425964738,1782048642000,-153.733346,0.0002,2]
[425964734,1782048642000,-819.4,0.00019968,2]
[425964732,1782048642000,-17710.44466581,0.0001995,15]
[425964741,1782048642000,-192.0,0.0002,2]
[425964740,1782048642000,-506.0,0.0002,2]
[425964730,1782048642000,-16531.69369743,0.00019848,2]
[425964761,1782048642000,-500.0,0.00020757,2]
[425964745,1782048642000,-379.2,0.0002,2]
[425964760,1782048642000,-500.0,0.00020757,2]
[425964779,1782048642000,-500.0,0.00020757,2]
[425964762,1782048642000,-500.0,0.00020757,2]
[425964789,1782048642000,-500.0,0.00020757,2]
[425964787,1782048642000,-500.0,0.00020757,2]
[425964788,1782048642000,-500.0,0.00020757,2]
[425964786,1782048642000,-500.0,0.00020757,2]
[425964784,1782048642000,-500.0,0.00020757,2]
[425964785,1782048642000,-500.0,0.00020757,2]
[425964783,1782048642000,-500.0,0.00020757,2]
[425964781,1782048642000,-500.0,0.00020757,2]
[425964782,1782048642000,-500.0,0.00020757,2]
[425964758,1782048642000,-187.42159584,0.0002058,2]
[425964790,1782048642000,-500.0,0.00020757,2]
[425964792,1782048642000,-166782.64457444,0.00020758,2]
[425964791,1782048642000,-500.0,0.00020757,2]
[425964776,1782048642000,-500.0,0.00020757,2]
[425964780,1782048642000,-500.0,0.00020757,2]
[425964774,1782048642000,-500.0,0.00020757,2]
[425964759,1782048642000,-16531.69369743,0.00020739,2]
[425964778,1782048642000,-500.0,0.00020757,2]
[425964763,1782048642000,-500.0,0.00020757,2]
[425964766,1782048642000,-500.0,0.00020757,2]
[425964769,1782048642000,-500.0,0.00020757,2]
[425964767,1782048642000,-500.0,0.00020757,2]
[425964768,1782048642000,-500.0,0.00020757,2]
[425964757,1782048642000,-150.0,0.0002058,2]
[425964771,1782048642000,-500.0,0.00020757,2]
[425964772,1782048642000,-500.0,0.00020757,2]
[425964773,1782048642000,-500.0,0.00020757,2]
[425964777,1782048642000,-500.0,0.00020757,2]
[425964775,1782048642000,-500.0,0.00020757,2]
[425964770,1782048642000,-500.0,0.00020757,2]
[425964822,1782048643000,-50.53667365,0.00020757,2]
[425964820,1782048643000,-520.94664693,0.00015404,2]
[425964821,1782048643000,-600.0,0.00015889,2]
[425964832,1782048643000,-2953.99412727,0.00020758,2]
[425964819,1782048643000,-449.46332635,0.00020757,2]
[425964814,1782048643000,-500.0,0.00020757,2]
[425964817,1782048643000,-39.51829302,0.00020757,2]
[425964812,1782048643000,-189.05496667,0.0001279,2]
[425964815,1782048643000,-150.94503333,0.00020757,2]
[425964810,1782048643000,-160.0,0.00012077,2]
[425964823,1782048643000,-500.0,0.00020757,2]
[425964818,1782048643000,-309.53667365,0.00020757,2]
[425964824,1782048643000,-500.0,0.00020757,2]
[425964843,1782048643000,-454.68174005,0.00020758,2]
[425964828,1782048643000,-500.0,0.00020757,2]
[425964844,1782048643000,-6855.90067227,0.00020758,2]
[425964845,1782048643000,-571.85529493,0.00020758,2]
[425964842,1782048643000,-697.13547387,0.00020758,2]
[425964837,1782048643000,-1226.85239246,0.00020758,2]
[425964838,1782048643000,-4954.0140825,0.00020758,2]
[425964840,1782048643000,-2186.02563205,0.00020758,2]
[425964826,1782048643000,-500.0,0.00020757,2]
[425964834,1782048643000,-6823.49403011,0.00020758,2]
[425964830,1782048643000,-500.0,0.00020757,2]
[425964825,1782048643000,-500.0,0.00020757,2]
[425964827,1782048643000,-500.0,0.00020757,2]
[425964829,1782048643000,-500.0,0.00020757,2]
[425964839,1782048643000,-508.0,0.00020758,2]
[425964846,1782048644000,-1025.88407082,0.00020758,2]
[425964864,1782048646000,-500.0,0.00020757,2]
[425964861,1782048646000,-500.0,0.00020757,2]
[425964860,1782048646000,-500.0,0.00020757,2]
[425964859,1782048646000,-500.0,0.00020757,2]
[425964856,1782048646000,-600.0,0.00015889,2]
[425964857,1782048646000,-600.0,0.00015889,2]
[425964858,1782048646000,-509.242,0.00015889,2]
[425964853,1782048646000,-600.0,0.00015889,2]
[425964855,1782048646000,-600.0,0.00015889,2]
[425964854,1782048646000,-600.0,0.00015889,2]
[425964851,1782048646000,-600.0,0.00015889,2]
[425964849,1782048646000,-1331.4335366,0.000127,2]
[425964852,1782048646000,-600.0,0.00015889,2]
[425964850,1782048646000,-4842.92934019,0.000127,2]
[425964848,1782048646000,-585.17472321,0.000127,2]
[425964865,1782048646000,-500.0,0.00020757,2]
[425964863,1782048646000,-500.0,0.00020757,2]
[425964867,1782048646000,-134481.36983993,0.00020758,2]
[425964866,1782048646000,-500.0,0.00020757,2]
[425964879,1782048646000,-98863.13076044,0.00020765,2]
[425964880,1782048646000,-565.29183314,0.00020765,2]
[425964877,1782048646000,-151.0,0.00020758,2]
[425964878,1782048646000,-151.0,0.00020758,2]
[425964881,1782048646000,-788.47456397,0.00020765,2]
[425964862,1782048646000,-500.0,0.00020757,2]
[425964871,1782048646000,-154345.0827368,0.00020758,2]
[425964882,1782048646000,-500.0,0.00020757,2]
[425964872,1782048646000,-48858.8867076,0.00020758,2]
[425964876,1782048646000,-151.0,0.00020758,2]
[425964873,1782048646000,-151.0,0.00020758,2]
[425964875,1782048646000,-222.12432,0.00020758,2]
[425964869,1782048646000,-63185.4441877,0.00020758,2]
[425964868,1782048646000,-4212.7615879,0.00020758,2]
[425964874,1782048646000,-151.0,0.00020758,2]
[425964870,1782048646000,-1599.7721105,0.00020758,2]
[425965055,1782048778000,150.0,0.00030136,120]
[425965056,1782048783000,-661.0,0.000127,2]
[425965061,1782048922000,713.94,0.00026102,120]
[425965062,1782048923000,713.94,0.00028475,120]
[425965063,1782049418000,1194.13,0.00030136,120]
[425965064,1782049452000,1000.0,0.00030136,120]
[425965065,1782049452000,1000.0,0.00030136,120]
[425965066,1782049453000,743.22058118,0.00030136,120]
[425965067,1782049691000,150.0,0.00030136,120]
[425965079,1782049832000,-555.64782345,0.00012594,2]
[425965078,1782049832000,-500.0,0.00012594,2]
[425965080,1782049832000,-55005.74529707,0.00012595,2]
[425965077,1782049832000,-251.34875312,0.00012594,2]
[425965075,1782049832000,-16701.36032262,0.00012496,2]
[425965076,1782049832000,-189.05496668,0.00012585,2]
[425965072,1782049832000,-166.66666667,0.00012446,2]
[425965074,1782049832000,-145.23214731,0.00012496,2]
[425965073,1782049832000,-203.97971684,0.00012465,2]
[425965088,1782049838000,-301.88641178,0.00012495,2]
[425965091,1782049838000,-450.58499,0.00012595,2]
[425965089,1782049838000,-436.91125532,0.00012495,2]
[425965092,1782049838000,-567.55422407,0.00012595,2]
[425965093,1782049838000,-452.60097426,0.00012595,2]
[425965094,1782049838000,-3568.85180875,0.00012595,2]
[425965095,1782049838000,-3762.33122102,0.00012595,2]
[425965096,1782049838000,-6187.64401634,0.00012595,2]
[425965090,1782049838000,-1772.0589173,0.00012595,2]
[425965166,1782049840000,-9999.99,0.000127,2]
[425965171,1782049840000,-150.99,0.000127,2]
[425965172,1782049840000,-500.0,0.00013698,2]
[425965169,1782049840000,-299.99,0.000127,2]
[425965167,1782049840000,-6592.69,0.000127,2]
[425965168,1782049840000,-9999.99,0.000127,2]
[425965175,1782049840000,-500.0,0.00013698,2]
[425965174,1782049840000,-500.0,0.00013698,2]
[425965176,1782049840000,-500.0,0.00013698,2]
[425965177,1782049840000,-500.0,0.00013698,2]
[425965178,1782049840000,-500.0,0.00013698,2]
[425965179,1782049840000,-500.0,0.00013698,2]
[425965173,1782049840000,-500.0,0.00013698,2]
[425965170,1782049840000,-9999.99,0.000127,2]
[425965160,1782049840000,-2500.0,0.000126,2]
[425965164,1782049840000,-12139.37,0.0001269,2]
[425965165,1782049840000,-1339.0,0.000127,2]
[425965161,1782049840000,-218.50516104,0.000126,2]
[425965158,1782049840000,-216.32317309,0.00012597,2]
[425965157,1782049840000,-171.0,0.00012595,2]
[425965155,1782049840000,-171.0,0.00012595,2]
[425965162,1782049840000,-15366.90762052,0.000126,2]
[425965159,1782049840000,-426.30302538,0.000126,2]
[425965156,1782049840000,-171.0,0.00012595,2]
[425965154,1782049840000,-1424763.00578984,0.00012595,2]
[425965153,1782049840000,-262.274395,0.00012595,2]
[425965152,1782049840000,-1406.555677,0.00012595,2]
[425965180,1782049840000,-500.0,0.00013698,2]
[425965163,1782049840000,-999.99,0.0001269,2]
[425965183,1782049840000,-500.0,0.00013698,2]
[425965151,1782049840000,-1800.79268935,0.00012595,2]
[425965181,1782049840000,-500.0,0.00013698,2]
[425965182,1782049840000,-500.0,0.00013698,2]
[425965210,1782049840000,-500.0,0.00014999,2]
[425965213,1782049840000,-500.0,0.00014999,2]
[425965212,1782049840000,-500.0,0.00014999,2]
[425965207,1782049840000,-500.0,0.00014486,2]
[425965209,1782049840000,-166.66,0.00014984,2]
[425965208,1782049840000,-166.66,0.00014688,2]
[425965204,1782049840000,-500.0,0.00014481,2]
[425965206,1782049840000,-500.0,0.00014481,2]
[425965203,1782049840000,-166.66,0.00014391,2]
[425965201,1782049840000,-16846.59246988,0.00014141,2]
[425965205,1782049840000,-500.0,0.00014481,2]
[425965202,1782049840000,-15366.90762046,0.00014233,2]
[425965200,1782049840000,-166.66,0.00014094,2]
[425965199,1782049840000,-500.0,0.0001407,2]
[425965211,1782049840000,-500.0,0.00014999,2]
[425965197,1782049840000,-250.0,0.00014,2]
[425965186,1782049840000,-500.0,0.00013698,2]
[425965184,1782049840000,-500.0,0.00013698,2]
[425965185,1782049840000,-500.0,0.00013698,2]
[425965189,1782049840000,-500.0,0.00013698,2]
[425965198,1782049840000,-448.8513308,0.00014002,2]
[425965187,1782049840000,-500.0,0.00013698,2]
[425965188,1782049840000,-500.0,0.00013698,2]
[425965192,1782049840000,-496.25228116,0.00013698,2]
[425965194,1782049840000,-174.35791562,0.00013698,2]
[425965190,1782049840000,-500.0,0.00013698,2]
[425965193,1782049840000,-7941.26,0.00013698,2]
[425965195,1782049840000,-426.56938148,0.00013698,2]
[425965196,1782049840000,-574.83163231,0.00013976,2]
[425965191,1782049840000,-500.0,0.00013698,2]
[425965255,1782049841000,-1734.62772924,0.00018531,2]
[425965256,1782049841000,-713.94,0.00018983,2]
[425965249,1782049841000,-204.42,0.00018062,2]
[425965253,1782049841000,-157.2,0.0001841,2]
[425965254,1782049841000,-166.66,0.00018468,2]
[425965246,1782049841000,-1672.7364795,0.00017983,2]
[425965250,1782049841000,-363.04963481,0.0001813,2]
[425965252,1782049841000,-2245.05,0.00018356,2]
[425965248,1782049841000,-426.30302538,0.00018033,2]
[425965247,1782049841000,-1184.5257635,0.00018002,2]
[425965257,1782049841000,-204.42,0.00019013,2]
[425965251,1782049841000,-232.88,0.00018318,2]
[425965258,1782049841000,-166.66,0.00019023,2]
[425965267,1782049841000,-218.50516103,0.00019949,2]
[425965260,1782049841000,-1798.80895522,0.00019079,2]
[425965261,1782049841000,-15366.90762046,0.00019132,2]
[425965263,1782049841000,-1656.08,0.00019527,2]
[425965265,1782049841000,-1865.36488656,0.00019627,2]
[425965262,1782049841000,-1774.02,0.00019231,2]
[425965270,1782049841000,-153.733346,0.0002,2]
[425965268,1782049841000,-204.42,0.00019963,2]
[425965266,1782049841000,-150.0,0.000199,7]
[425965269,1782049841000,-182.0,0.0002,2]
[425965271,1782049841000,-151.0,0.0002,2]
[425965273,1782049841000,-156.0,0.0002,2]
[425965272,1782049841000,-4632.11,0.0002,2]
[425965245,1782049841000,-166.66,0.00017913,2]
[425965259,1782049841000,-16846.59246988,0.00019074,2]
[425965237,1782049841000,-150.0,0.00017059,2]
[425965226,1782049841000,-500.0,0.00016438,2]
[425965243,1782049841000,-15366.90762046,0.00017499,2]
[425965215,1782049841000,-166.66,0.00015281,2]
[425965214,1782049841000,-296.75764217,0.00014999,2]
[425965219,1782049841000,-15366.90762046,0.00015866,2]
[425965216,1782049841000,-426.30302538,0.00015317,2]
[425965218,1782049841000,-16846.59246988,0.00015785,2]
[425965217,1782049841000,-166.66,0.00015578,2]
[425965221,1782049841000,-275.23,0.00016052,2]
[425965222,1782049841000,-1154.26,0.00016079,2]
[425965220,1782049841000,-300.0,0.00016,2]
[425965227,1782049841000,-500.0,0.00016438,2]
[425965225,1782049841000,-157.2,0.00016438,2]
[425965230,1782049841000,-500.0,0.00016608,2]
[425965232,1782049841000,-429.70900624,0.00016757,2]
[425965274,1782049841000,-240.0,0.0002,2]
[425965231,1782049841000,-250.0,0.00016637,2]
[425965229,1782049841000,-300.0,0.00016438,2]
[425965223,1782049841000,-1500.0,0.00016339,2]
[425965228,1782049841000,-500.0,0.00016438,2]
[425965233,1782049841000,-166.66,0.00016804,2]
[425965235,1782049841000,-200.0,0.00016868,2]
[425965234,1782049841000,-167.45,0.0001682,2]
[425965236,1782049841000,-1555.5,0.00016887,2]
[425965240,1782049841000,-166.66,0.00017359,2]
[425965238,1782049841000,-1774.02,0.00017095,2]
[425965244,1782049841000,-2487.61,0.00017722,2]
[425965239,1782049841000,-204.42,0.00017111,2]
[425965242,1782049841000,-1613.0535,0.00017435,2]
[425965241,1782049841000,-16846.59246988,0.0001743,2]
[425965276,1782049841000,-157.0,0.0002,2]
[425965264,1782049841000,-166.66,0.00019577,2]
[425965281,1782049841000,-4125.79,0.00020035,2]
[425965309,1782049841000,-16846.59246988,0.00020719,2]
[425965311,1782049841000,-151.0,0.00020723,2]
[425965315,1782049841000,-151.0,0.00020723,2]
[425965313,1782049841000,-151.0,0.00020723,2]
[425965314,1782049841000,-151.0,0.00020723,2]
[425965316,1782049841000,-151.0,0.00020723,2]
[425965317,1782049841000,-151.0,0.00020723,2]
[425965319,1782049841000,-151.0,0.00020723,2]
[425965312,1782049841000,-151.0,0.00020723,2]
[425965318,1782049841000,-151.0,0.00020723,2]
[425965320,1782049841000,-2005.9555727,0.00020723,2]
[425965322,1782049841000,-151.0,0.00020723,2]
[425965321,1782049841000,-500.0,0.00020723,2]
[425965310,1782049841000,-151.0,0.00020723,2]
[425965323,1782049841000,-151.0,0.00020723,2]
[425965332,1782049841000,-500.0,0.00020723,2]
[425965330,1782049841000,-500.0,0.00020723,2]
[425965326,1782049841000,-151.0,0.00020723,2]
[425965324,1782049841000,-500.0,0.00020723,2]
[425965327,1782049841000,-500.0,0.00020723,2]
[425965331,1782049841000,-151.0,0.00020723,2]
[425965328,1782049841000,-279.8357851,0.00020723,2]
[425965329,1782049841000,-151.0,0.00020723,2]
[425965333,1782049841000,-500.0,0.00020723,2]
[425965334,1782049841000,-151.0,0.00020723,2]
[425965278,1782049841000,-167.67306325,0.0002,2]
[425965337,1782049841000,-151.0,0.00020723,2]
[425965335,1782049841000,-151.0,0.00020723,2]
[425965325,1782049841000,-151.0,0.00020723,2]
[425965308,1782049841000,-5537.27918479,0.000207,2]
[425965336,1782049841000,-500.0,0.00020723,2]
[425965307,1782049841000,-302.073581,0.000207,2]
[425965305,1782049841000,-766.5172925,0.00020598,2]
[425965275,1782049841000,-440.0,0.0002,2]
[425965277,1782049841000,-347.0,0.0002,2]
[425965283,1782049841000,-302.073581,0.000201,2]
[425965282,1782049841000,-742.2166775,0.000201,2]
[425965279,1782049841000,-506.0,0.0002,2]
[425965284,1782049841000,-5537.27918479,0.000201,2]
[425965286,1782049841000,-215.449231,0.00020176,2]
[425965285,1782049841000,-1934.38338736,0.00020175,2]
[425965287,1782049841000,-212.539835,0.00020176,2]
[425965288,1782049841000,-742.2166775,0.000203,2]
[425965289,1782049841000,-302.073581,0.000203,2]
[425965290,1782049841000,-5537.27918479,0.000203,2]
[425965291,1782049841000,-157.2,0.00020381,2]
[425965280,1782049841000,-2089.64385313,0.00020002,7]
[425965295,1782049841000,-5537.27918479,0.000205,2]
[425965302,1782049841000,-77172.5413684,0.00020588,2]
[425965306,1782049841000,-742.2166775,0.000207,2]
[425965304,1782049841000,-3735.5341756,0.00020588,2]
[425965301,1782049841000,-799.8860553,0.00020588,2]
[425965303,1782049841000,-24429.4433538,0.00020588,2]
[425965294,1782049841000,-302.073581,0.000205,2]
[425965299,1782049841000,-430148.1679806,0.00020588,2]
[425965300,1782049841000,-2106.3807939,0.00020588,2]
[425965297,1782049841000,-150.0,0.0002058,2]
[425965296,1782049841000,-150.0,0.0002058,2]
[425965293,1782049841000,-742.2166775,0.000205,2]
[425965292,1782049841000,-632.0,0.00020491,2]
[425965298,1782049841000,-187.42159584,0.0002058,2]
[425965376,1782049842000,-697.24954184,0.00020969,2]
[425965372,1782049842000,-1377.42282658,0.00020969,2]
[425965370,1782049842000,-9211.34798984,0.00020969,2]
[425965375,1782049842000,-500.0,0.00020969,2]
[425965368,1782049842000,-1235.18214925,0.00020969,2]
[425965373,1782049842000,-500.0,0.00020969,2]
[425965377,1782049842000,-1481.2378076,0.00020969,2]
[425965374,1782049842000,-1428.38747117,0.00020969,2]
[425965371,1782049842000,-1328.27659266,0.00020969,2]
[425965369,1782049842000,-1280.88388877,0.00020969,2]
[425965378,1782049842000,-500.0,0.00020969,2]
[425965379,1782049842000,-1536.04360648,0.00020969,2]
[425965388,1782049842000,-500.0,0.00020969,2]
[425965381,1782049842000,-500.0,0.00020969,2]
[425965392,1782049842000,-500.0,0.00020969,2]
[425965383,1782049842000,-1592.87721992,0.00020969,2]
[425965382,1782049842000,-209.40437684,0.00020969,2]
[425965384,1782049842000,-500.0,0.00020969,2]
[425965390,1782049842000,-152.0,0.00020969,2]
[425965386,1782049842000,-151.0,0.00020969,2]
[425965389,1782049842000,-500.0,0.00020969,2]
[425965385,1782049842000,-284.47766903,0.00020969,2]
[425965387,1782049842000,-500.0,0.00020969,2]
[425965367,1782049842000,-578.20924308,0.00020969,2]
[425965394,1782049842000,-500.0,0.00020969,2]
[425965380,1782049842000,-159.51833463,0.00020969,2]
[425965364,1782049842000,-1148.61238259,0.00020969,2]
[425965349,1782049842000,-742.2166775,0.000209,2]
[425965363,1782049842000,-1107.63007,0.00020969,2]
[425965393,1782049842000,-152.0,0.00020969,2]
[425965339,1782049842000,-151.0,0.00020723,2]
[425965338,1782049842000,-500.0,0.00020723,2]
[425965340,1782049842000,-151.0,0.00020723,2]
[425965341,1782049842000,-151.0,0.00020723,2]
[425965342,1782049842000,-151.0,0.00020723,2]
[425965343,1782049842000,-151.0,0.00020723,2]
[425965344,1782049842000,-426.30302538,0.0002075,2]
[425965345,1782049842000,-15366.90762046,0.00020764,2]
[425965346,1782049842000,-159.37817,0.0002082,2]
[425965354,1782049842000,-209.40437684,0.00020969,2]
[425965348,1782049842000,-159.37818,0.0002082,2]
[425965365,1782049842000,-1191.11104074,0.00020969,2]
[425965355,1782049842000,-163.7612667,0.00020969,2]
[425965353,1782049842000,-500.0,0.00020969,2]
[425965351,1782049842000,-5537.27918479,0.000209,2]
[425965350,1782049842000,-302.073581,0.000209,2]
[425965352,1782049842000,-204.42,0.00020914,2]
[425965356,1782049842000,-156.84738482,0.00020969,2]
[425965357,1782049842000,-155.48525485,0.00020969,2]
[425965358,1782049842000,-156.89976954,0.00020969,2]
[425965360,1782049842000,-1030.0,0.00020969,2]
[425965359,1782049842000,-151.0,0.00020969,2]
[425965366,1782049842000,-201.93286099,0.00020969,2]
[425965361,1782049842000,-256.70248179,0.00020969,2]
[425965362,1782049842000,-1068.11,0.00020969,2]
[425965347,1782049842000,-159.37817,0.0002082,2]
[425965396,1782049842000,-500.0,0.00020969,2]
[425965391,1782049842000,-500.0,0.00020969,2]
[425965399,1782049842000,-152.0,0.00020969,2]
[425965424,1782049842000,-819.4,0.00021273,2]
[425965429,1782049842000,-1774.02,0.00021368,2]
[425965430,1782049842000,-5537.27918479,0.000214,2]
[425965432,1782049842000,-151.0,0.00021464,2]
[425965433,1782049842000,-3125.9822309,0.00021502,7]
[425965431,1782049842000,-151.0,0.00021409,2]
[425965435,1782049842000,-518.5,0.00021517,2]
[425965436,1782049842000,-156.84738482,0.00021517,2]
[425965438,1782049842000,-159.51833467,0.00021517,2]
[425965434,1782049842000,-4229.5572,0.00021502,7]
[425965437,1782049842000,-9552.16786547,0.00021517,2]
[425965439,1782049842000,-151.0,0.00021519,2]
[425965423,1782049842000,-460.83,0.00021273,2]
[425965440,1782049842000,-151.0,0.00021574,2]
[425965443,1782049842000,-305.93,0.00021644,4]
[425965444,1782049842000,-440.0,0.00021781,2]
[425965445,1782049842000,-5537.27918479,0.000218,2]
[425965447,1782049842000,-2157.14243826,0.00021819,2]
[425965442,1782049842000,-331.96,0.0002161,2]
[425965448,1782049842000,-204.42,0.00021865,2]
[425965449,1782049842000,-33314.5604,0.000219,2]
[425965450,1782049842000,-5000.0,0.00021918,2]
[425965451,1782049842000,-500.0,0.00021918,8]
[425965452,1782049842000,-500.0,0.00021918,8]
[425965453,1782049842000,-500.0,0.00021918,8]
[425965395,1782049842000,-152.0,0.00020969,2]
[425965441,1782049842000,-5537.27918479,0.000216,2]
[425965422,1782049842000,-2343.16,0.00021273,2]
[425965455,1782049842000,-500.0,0.00021918,15]
[425965426,1782049842000,-151.0,0.00021299,2]
[425965402,1782049842000,-152.0,0.00020969,2]
[425965401,1782049842000,-152.0,0.00020969,2]
[425965454,1782049842000,-500.0,0.00021918,8]
[425965400,1782049842000,-152.0,0.00020969,2]
[425965403,1782049842000,-152.0,0.00020969,2]
[425965397,1782049842000,-152.0,0.00020969,2]
[425965398,1782049842000,-152.0,0.00020969,2]
[425965421,1782049842000,-2080.17592889,0.00021271,2]
[425965404,1782049842000,-152.0,0.00020969,2]
[425965407,1782049842000,-156.0,0.00021,2]
[425965412,1782049842000,-506.0,0.00021,2]
[425965408,1782049842000,-240.0,0.00021,2]
[425965414,1782049842000,-151.0,0.00021024,2]
[425965405,1782049842000,-182.0,0.00021,2]
[425965416,1782049842000,-5537.27918479,0.000211,2]
[425965428,1782049842000,-713.94,0.00021356,2]
[425965409,1782049842000,-440.0,0.00021,2]
[425965420,1782049842000,-151.0,0.00021244,2]
[425965425,1782049842000,-12140.09,0.00021273,2]
[425965418,1782049842000,-151.0,0.00021189,2]
[425965419,1782049842000,-1533.0,0.00021228,5]
[425965427,1782049842000,-151.0,0.00021354,2]
[425965413,1782049842000,-163.76126679,0.00021024,2]
[425965411,1782049842000,-347.0,0.00021,2]
[425965415,1782049842000,-151.0,0.00021079,2]
[425965406,1782049842000,-151.0,0.00021,2]
[425965410,1782049842000,-157.0,0.00021,2]
[425965417,1782049842000,-151.0,0.00021134,2]
[425965498,1782049843000,-886.0,0.00023,2]
[425965495,1782049843000,-795.525,0.00022781,2]
[425965497,1782049843000,-2319.72410669,0.00022915,2]
[425965499,1782049843000,-182.0,0.00023,2]
[425965496,1782049843000,-204.42,0.00022815,2]
[425965492,1782049843000,-2343.16,0.00022691,2]
[425965487,1782049843000,-694.27072191,0.00022425,2]
[425965488,1782049843000,-251.81,0.00022466,2]
[425965490,1782049843000,-557.5788265,0.00022613,2]
[425965491,1782049843000,-156.84738482,0.00022613,2]
[425965494,1782049843000,-2011.96462247,0.00022781,7]
[425965502,1782049843000,-240.0,0.00023,2]
[425965507,1782049843000,-440.0,0.00023151,2]
[425965501,1782049843000,-156.0,0.00023,2]
[425965500,1782049843000,-163.69833086,0.00023,2]
[425965503,1782049843000,-440.0,0.00023,2]
[425965505,1782049843000,-347.0,0.00023,2]
[425965506,1782049843000,-506.0,0.00023,2]
[425965508,1782049843000,-578.20924309,0.00023161,2]
[425965512,1782049843000,-2405.55389863,0.00023463,2]
[425965510,1782049843000,-251.87,0.00023288,2]
[425965513,1782049843000,-426.30302538,0.00023467,2]
[425965511,1782049843000,-166.66666666,0.000234,2]
[425965509,1782049843000,-156.84738483,0.00023161,2]
[425965493,1782049843000,-1609.73100628,0.00022781,7]
[425965504,1782049843000,-165.98684029,0.00023,2]
[425965482,1782049843000,-2236.95670847,0.00022367,2]
[425965477,1782049843000,-537.6845,0.00022065,2]
[425965483,1782049843000,-15366.90762046,0.00022397,2]
[425965517,1782049843000,-441.89,0.000237,14]
[425965458,1782049843000,-500.0,0.00021918,15]
[425965456,1782049843000,-500.0,0.00021918,15]
[425965461,1782049843000,-164.67771057,0.00021918,2]
[425965460,1782049843000,-150.0,0.00021918,2]
[425965459,1782049843000,-500.0,0.00021918,15]
[425965462,1782049843000,-2029.11403695,0.00022,2]
[425965457,1782049843000,-500.0,0.00021918,15]
[425965463,1782049843000,-5537.27918479,0.00022,2]
[425965464,1782049843000,-182.0,0.00022,2]
[425965466,1782049843000,-151.0,0.00022,2]
[425965468,1782049843000,-311.19,0.00022,2]
[425965486,1782049843000,-2215.94538898,0.00022407,2]
[425965470,1782049843000,-156.0,0.00022,2]
[425965476,1782049843000,-506.0,0.00022,2]
[425965471,1782049843000,-240.0,0.00022,2]
[425965472,1782049843000,-440.0,0.00022,2]
[425965475,1782049843000,-173.0,0.00022,2]
[425965473,1782049843000,-157.0,0.00022,2]
[425965479,1782049843000,-4943.57634001,0.00022065,2]
[425965478,1782049843000,-156.84738482,0.00022065,2]
[425965480,1782049843000,-157.2,0.00022353,2]
[425965481,1782049843000,-16846.59246988,0.00022363,2]